[Event "Early-Titled-Tuesday-Blitz-December-26-2023"]
[Site "Chess.com"]
[Date "2023.12.26"]
[Round "5"]
[White "DarkAlekhine"]
[Black "newyorkmouse"]
[Result "1-0"]
[WhiteElo "2728"]
[BlackElo "2476"]
[TimeControl "180+1"]
[EndTime "8:56:21 PST"]
[Termination "DarkAlekhine won by checkmate"]

1. e4 {[%clk 0:02:50]} 1... c6 {[%clk 0:02:56.1]} 2. Nf3 {[%clk 0:02:44.9]} 2...
d5 {[%clk 0:02:55.3]} 3. d3 {[%clk 0:02:44.6]} 3... Bg4 {[%clk 0:02:44]} 4. Nbd2
{[%clk 0:02:41.9]} 4... dxe4 {[%clk 0:02:40]} 5. dxe4 {[%clk 0:02:40.8]} 5...
Nd7 {[%clk 0:02:36.8]} 6. h3 {[%clk 0:02:39.5]} 6... Bh5 {[%clk 0:02:36.3]} 7.
Bc4 {[%clk 0:02:31.7]} 7... e6 {[%clk 0:02:34.6]} 8. g4 {[%clk 0:02:30.7]} 8...
Bg6 {[%clk 0:02:33.7]} 9. Qe2 {[%clk 0:02:26.7]} 9... Bc5 {[%clk 0:02:26.2]} 10.
Nb3 {[%clk 0:02:23.3]} 10... Bb6 {[%clk 0:02:20.7]} 11. Bf4 {[%clk 0:02:19.1]}
11... Ngf6 {[%clk 0:02:18.4]} 12. Nbd2 {[%clk 0:02:01.4]} 12... Nc5 {[%clk
0:02:11.9]} 13. O-O-O {[%clk 0:01:58.3]} 13... Qe7 {[%clk 0:02:10.9]} 14. Ne5
{[%clk 0:01:15.6]} 14... Bxe4 {[%clk 0:02:08]} 15. Nxe4 {[%clk 0:01:05.3]} 15...
Nfxe4 {[%clk 0:01:53.4]} 16. b4 {[%clk 0:00:35.5]} 16... Nc3 {[%clk 0:01:53.2]}
17. Qf3 {[%clk 0:00:32.2]} 17... Nxd1 {[%clk 0:01:32.2]} 18. bxc5 {[%clk
0:00:22.1]} 18... Qxc5 {[%clk 0:01:33.1]} 19. Rxd1 {[%clk 0:00:21.7]} 19... f6
{[%clk 0:01:33.1]} 20. Bxe6 {[%clk 0:00:17.9]} 20... Qxf2 {[%clk 0:01:18.4]} 21.
Qxf2 {[%clk 0:00:15.1]} 21... Bxf2 {[%clk 0:01:19.3]} 22. Nf7 {[%clk 0:00:13.8]}
22... Rf8 {[%clk 0:01:13.9]} 23. Rd7 {[%clk 0:00:13.2]} 23... Bc5 {[%clk
0:01:07.8]} 24. Nd6+ {[%clk 0:00:09.8]} 24... Bxd6 {[%clk 0:01:07.6]} 25. Bxd6
{[%clk 0:00:10.7]} 25... Rh8 {[%clk 0:01:04.4]} 26. Re7+ {[%clk 0:00:09.7]}
26... Kd8 {[%clk 0:01:04.4]} 27. Rxb7 {[%clk 0:00:10]} 27... a5 {[%clk
0:01:03.3]} 28. a4 {[%clk 0:00:07.1]} 28... g6 {[%clk 0:01:01.2]} 29. Kd2 {[%clk
0:00:07.1]} 29... h5 {[%clk 0:00:57.6]} 30. Kc3 {[%clk 0:00:04.8]} 30... hxg4
{[%clk 0:00:57.4]} 31. hxg4 {[%clk 0:00:05.7]} 31... Rh3+ {[%clk 0:00:49.5]} 32.
Kc4 {[%clk 0:00:05.8]} 32... Re3 {[%clk 0:00:45.4]} 33. Rd7+ {[%clk 0:00:06]}
33... Ke8 {[%clk 0:00:45]} 34. Re7+ {[%clk 0:00:06.9]} 34... Kd8 {[%clk
0:00:45.5]} 35. Kd4 {[%clk 0:00:04.6]} 35... Re1 {[%clk 0:00:43.9]} 36. Kc5
{[%clk 0:00:04.7]} 36... Ra6 {[%clk 0:00:40.9]} 37. Rd7+ {[%clk 0:00:04.6]}
37... Ke8 {[%clk 0:00:41.1]} 38. Re7+ {[%clk 0:00:05]} 38... Kd8 {[%clk
0:00:41.7]} 39. Bc4 {[%clk 0:00:04.4]} 39... Rxe7 {[%clk 0:00:27]} 40. Bxe7+
{[%clk 0:00:05.3]} 40... Kxe7 {[%clk 0:00:27.9]} 41. Bxa6 {[%clk 0:00:05.2]}
41... Kd7 {[%clk 0:00:28.8]} 42. Bd3 {[%clk 0:00:05.1]} 42... g5 {[%clk
0:00:28.4]} 43. Kb6 {[%clk 0:00:05]} 43... Kd6 {[%clk 0:00:28.4]} 44. Kxa5
{[%clk 0:00:05.5]} 44... Kc5 {[%clk 0:00:28.5]} 45. Bf5 {[%clk 0:00:05.9]} 45...
Kc4 {[%clk 0:00:28]} 46. Kb6 {[%clk 0:00:06.4]} 46... Kb4 {[%clk 0:00:28.3]} 47.
Kxc6 {[%clk 0:00:06.6]} 47... Kxa4 {[%clk 0:00:28.7]} 48. c4 {[%clk 0:00:07.5]}
48... Kb4 {[%clk 0:00:29.2]} 49. c5 {[%clk 0:00:08.4]} 49... Kc4 {[%clk
0:00:29.7]} 50. Kb6 {[%clk 0:00:09.3]} 50... Kd5 {[%clk 0:00:30]} 51. c6 {[%clk
0:00:10.2]} 51... Kd6 {[%clk 0:00:29.4]} 52. c7 {[%clk 0:00:11.1]} 52... Ke5
{[%clk 0:00:29.2]} 53. c8=Q {[%clk 0:00:11.2]} 53... Kf4 {[%clk 0:00:30.1]} 54.
Qe6 {[%clk 0:00:11.6]} 54... Kg3 {[%clk 0:00:30.5]} 55. Qxf6 {[%clk 0:00:12.1]}
55... Kh4 {[%clk 0:00:30.7]} 56. Qh6+ {[%clk 0:00:12]} 56... Kg3 {[%clk
0:00:31.2]} 57. Qxg5 {[%clk 0:00:12.9]} 57... Kg2 {[%clk 0:00:31.5]} 58. Be4+
{[%clk 0:00:13]} 58... Kf1 {[%clk 0:00:29.7]} 59. Qd2 {[%clk 0:00:12.4]} 59...
Kg1 {[%clk 0:00:29.7]} 60. Qg2# {[%clk 0:00:13.3]} 1-0

[Event "Early-Titled-Tuesday-Blitz-December-26-2023"]
[Site "Chess.com"]
[Date "2023.12.26"]
[Round "5"]
[White "Nasrin_Babayeva"]
[Black "Manukyan_Artak"]
[Result "0-1"]
[WhiteElo "1807"]
[BlackElo "2600"]
[TimeControl "180+1"]
[EndTime "8:56:25 PST"]
[Termination "Manukyan_Artak won on time"]

1. c4 {[%clk 0:03:00.1]} 1... Nf6 {[%clk 0:02:58.6]} 2. g3 {[%clk 0:02:59.7]}
2... g6 {[%clk 0:02:57.4]} 3. Bg2 {[%clk 0:03:00.1]} 3... Bg7 {[%clk 0:02:58]}
4. Nc3 {[%clk 0:03:00.7]} 4... O-O {[%clk 0:02:58.1]} 5. e4 {[%clk 0:03:01]}
5... c5 {[%clk 0:02:57]} 6. Nge2 {[%clk 0:03:01.4]} 6... e5 {[%clk 0:02:56.8]}
7. O-O {[%clk 0:03:02.3]} 7... d6 {[%clk 0:02:57.1]} 8. d3 {[%clk 0:03:02.6]}
8... Nc6 {[%clk 0:02:56.3]} 9. a3 {[%clk 0:03:02.4]} 9... Nd4 {[%clk 0:02:56.1]}
10. b4 {[%clk 0:03:00.9]} 10... h5 {[%clk 0:02:41.1]} 11. h3 {[%clk 0:02:57.5]}
11... h4 {[%clk 0:02:39.7]} 12. g4 {[%clk 0:02:57.1]} 12... Nh7 {[%clk
0:02:39.6]} 13. Nxd4 {[%clk 0:02:49.7]} 13... cxd4 {[%clk 0:02:38.1]} 14. Nd5
{[%clk 0:02:49.5]} 14... Be6 {[%clk 0:02:34.5]} 15. f4 {[%clk 0:02:46.6]} 15...
Bxd5 {[%clk 0:02:32.2]} 16. cxd5 {[%clk 0:02:44.1]} 16... f6 {[%clk 0:02:28.9]}
17. Qe1 {[%clk 0:02:40]} 17... g5 {[%clk 0:02:28.2]} 18. f5 {[%clk 0:02:28.4]}
18... Rc8 {[%clk 0:02:20.2]} 19. Rf2 {[%clk 0:02:20.2]} 19... Rf7 {[%clk
0:02:12.7]} 20. Bb2 {[%clk 0:02:14.7]} 20... Rfc7 {[%clk 0:02:11]} 21. Qd1
{[%clk 0:02:06.9]} 21... Nf8 {[%clk 0:02:06]} 22. Bf3 {[%clk 0:02:04.5]} 22...
Nd7 {[%clk 0:02:00.8]} 23. Qb3 {[%clk 0:02:02.8]} 23... b5 {[%clk 0:01:56.7]}
24. Bd1 {[%clk 0:02:01.7]} 24... Nb6 {[%clk 0:01:52.3]} 25. Qa2 {[%clk
0:01:55.2]} 25... Na4 {[%clk 0:01:38.6]} 26. Bxa4 {[%clk 0:01:52.3]} 26... bxa4
{[%clk 0:01:39]} 27. Qb1 {[%clk 0:01:42.1]} 27... Qd7 {[%clk 0:01:35.5]} 28. Qd1
{[%clk 0:01:40]} 28... a5 {[%clk 0:01:29.7]} 29. Kg2 {[%clk 0:01:14.3]} 29...
Bf8 {[%clk 0:01:17.4]} 30. Kf3 {[%clk 0:01:10.9]} 30... Qb5 {[%clk 0:01:04]} 31.
Rd2 {[%clk 0:00:46]} 31... Be7 {[%clk 0:00:55.2]} 32. Ke2 {[%clk 0:00:37.3]}
32... Bd8 {[%clk 0:00:48.3]} 33. Ra2 {[%clk 0:00:24.8]} 33... Kf7 {[%clk
0:00:34.9]} 34. Ra1 {[%clk 0:00:22]} 34... Ke8 {[%clk 0:00:31.1]} 35. Ra2 {[%clk
0:00:20.2]} 35... Rb7 {[%clk 0:00:25.6]} 36. Ra1 {[%clk 0:00:16.9]} 36... Ke7
{[%clk 0:00:22.1]} 37. Ra2 {[%clk 0:00:16.8]} 37... Rcb8 {[%clk 0:00:17.3]} 38.
Rc2 {[%clk 0:00:11.1]} 38... Rc7 {[%clk 0:00:17.4]} 39. Rxc7+ {[%clk 0:00:10]}
39... Bxc7 {[%clk 0:00:18.3]} 40. Qc2 {[%clk 0:00:09.5]} 40... Kd7 {[%clk
0:00:18.3]} 41. Ra1 {[%clk 0:00:07.8]} 41... Qb7 {[%clk 0:00:15.9]} 42. Bc1
{[%clk 0:00:06.4]} 42... Qb5 {[%clk 0:00:14]} 43. Bd2 {[%clk 0:00:05.9]} 43...
Bb6 {[%clk 0:00:13.6]} 44. Rb1 {[%clk 0:00:03.4]} 44... Rc8 {[%clk 0:00:11.6]}
45. Qd1 {[%clk 0:00:02.1]} 45... Rc3 {[%clk 0:00:07.1]} 46. Bxc3 {[%clk
0:00:01.1]} 46... dxc3 {[%clk 0:00:08]} 0-1

[Event "Early-Titled-Tuesday-Blitz-December-26-2023"]
[Site "Chess.com"]
[Date "2023.12.26"]
[Round "5"]
[White "Virgo15"]
[Black "anasta10"]
[Result "1-0"]
[WhiteElo "2764"]
[BlackElo "2567"]
[TimeControl "180+1"]
[EndTime "8:56:32 PST"]
[Termination "Virgo15 won by resignation"]

1. d4 {[%clk 0:02:24.1]} 1... Nf6 {[%clk 0:02:58.6]} 2. Bf4 {[%clk 0:02:21.8]}
2... g6 {[%clk 0:02:57.7]} 3. Nc3 {[%clk 0:02:21.7]} 3... Bg7 {[%clk 0:02:56.8]}
4. e4 {[%clk 0:02:22.1]} 4... d6 {[%clk 0:02:57.2]} 5. Qd2 {[%clk 0:02:22.4]}
5... a6 {[%clk 0:02:56.8]} 6. Bh6 {[%clk 0:02:22]} 6... Bxh6 {[%clk 0:02:52.8]}
7. Qxh6 {[%clk 0:02:22.2]} 7... Nbd7 {[%clk 0:02:35.4]} 8. O-O-O {[%clk
0:02:21.6]} 8... c6 {[%clk 0:02:27.6]} 9. e5 {[%clk 0:02:21.6]} 9... Ng4 {[%clk
0:02:12.4]} 10. Qg7 {[%clk 0:02:21.3]} 10... Rf8 {[%clk 0:02:09.9]} 11. Ne4
{[%clk 0:02:15.3]} 11... d5 {[%clk 0:01:36.7]} 12. h3 {[%clk 0:02:15.1]} 12...
dxe4 {[%clk 0:01:24.6]} 13. hxg4 {[%clk 0:02:15.1]} 13... Qa5 {[%clk 0:01:25.5]}
14. Bc4 {[%clk 0:02:13.8]} 14... Nb6 {[%clk 0:01:13.7]} 15. Bb3 {[%clk
0:02:12.1]} 15... Bxg4 {[%clk 0:01:14.1]} 16. f3 {[%clk 0:02:09.4]} 16... exf3
{[%clk 0:01:10.2]} 17. gxf3 {[%clk 0:02:07.8]} 17... Bh5 {[%clk 0:01:07.6]} 18.
e6 {[%clk 0:02:06.1]} 18... f6 {[%clk 0:00:58]} 19. Kb1 {[%clk 0:01:54.9]} 19...
Qb4 {[%clk 0:00:51.5]} 20. a3 {[%clk 0:01:52.9]} 20... Qd6 {[%clk 0:00:51.8]}
21. c4 {[%clk 0:01:52.9]} 21... Qc7 {[%clk 0:00:44.5]} 22. Rxh5 {[%clk
0:01:46.8]} 22... gxh5 {[%clk 0:00:44.3]} 23. c5 {[%clk 0:01:42.9]} 23... Nd5
{[%clk 0:00:42.6]} 24. Bxd5 {[%clk 0:01:43.4]} 24... cxd5 {[%clk 0:00:43.5]} 25.
Qxh7 {[%clk 0:01:34.9]} 25... O-O-O {[%clk 0:00:43.2]} 26. Qxh5 {[%clk
0:01:35.4]} 26... Qg3 {[%clk 0:00:35.8]} 27. Qf5 {[%clk 0:01:30.8]} 27... Rg8
{[%clk 0:00:32.9]} 28. Ka2 {[%clk 0:01:30.5]} 28... Qg6 {[%clk 0:00:29.6]} 29.
Qf4 {[%clk 0:01:28.6]} 29... Qc2 {[%clk 0:00:23.6]} 30. Rc1 {[%clk 0:01:28.5]}
30... Qa4 {[%clk 0:00:23.8]} 31. Ne2 {[%clk 0:01:20.3]} 31... Rg2 {[%clk
0:00:23]} 32. Qe3 {[%clk 0:01:11.9]} 32... Rdg8 {[%clk 0:00:19.3]} 33. Nf4
{[%clk 0:01:11.8]} 33... R2g5 {[%clk 0:00:15.4]} 34. Qc3 {[%clk 0:01:03.6]}
34... Qc6 {[%clk 0:00:15]} 35. Qb3 {[%clk 0:00:58.3]} 35... Rd8 {[%clk
0:00:14.5]} 36. Rh1 {[%clk 0:00:56]} 36... Kb8 {[%clk 0:00:14.2]} 37. Rh7 {[%clk
0:00:55.2]} 37... Rf5 {[%clk 0:00:13.5]} 38. Qe3 {[%clk 0:00:53.7]} 38... Ka7
{[%clk 0:00:10.9]} 39. Rxe7 {[%clk 0:00:52.9]} 39... Qb5 {[%clk 0:00:09.5]} 40.
Ne2 {[%clk 0:00:39.5]} 40... Re8 {[%clk 0:00:06]} 41. Rd7 {[%clk 0:00:30.8]}
41... Rh5 {[%clk 0:00:02.7]} 42. Nf4 {[%clk 0:00:21.7]} 42... Rhh8 {[%clk
0:00:02.9]} 43. Qb3 {[%clk 0:00:21.3]} 43... Qc4 {[%clk 0:00:02]} 44. Qxc4
{[%clk 0:00:20]} 44... dxc4 {[%clk 0:00:02.9]} 45. c6 {[%clk 0:00:20.4]} 45...
Kb6 {[%clk 0:00:02.9]} 46. c7 {[%clk 0:00:19.4]} 46... Kc6 {[%clk 0:00:03]} 47.
d5+ {[%clk 0:00:19.4]} 47... Kb6 {[%clk 0:00:03.4]} 48. d6 {[%clk 0:00:19.6]}
48... Rc8 {[%clk 0:00:03.5]} 49. e7 {[%clk 0:00:19.1]} 49... Rhe8 {[%clk
0:00:03.4]} 50. Rd8 {[%clk 0:00:19.4]} 50... Kc6 {[%clk 0:00:04.3]} 51. d7
{[%clk 0:00:19.7]} 1-0

[Event "Early-Titled-Tuesday-Blitz-December-26-2023"]
[Site "Chess.com"]
[Date "2023.12.26"]
[Round "5"]
[White "LeoLV10"]
[Black "rikchessmx"]
[Result "1-0"]
[WhiteElo "2471"]
[BlackElo "2207"]
[TimeControl "180+1"]
[EndTime "8:56:36 PST"]
[Termination "LeoLV10 won by checkmate"]

1. e4 {[%clk 0:03:00.9]} 1... e5 {[%clk 0:02:58.4]} 2. Nf3 {[%clk 0:03:00.7]}
2... Nc6 {[%clk 0:02:59.3]} 3. Bb5 {[%clk 0:03:01.2]} 3... Bc5 {[%clk
0:02:58.9]} 4. O-O {[%clk 0:03:00.6]} 4... Qf6 {[%clk 0:02:56.8]} 5. c3 {[%clk
0:03:00]} 5... Nge7 {[%clk 0:02:55.5]} 6. Re1 {[%clk 0:03:00.2]} 6... a6 {[%clk
0:02:54.3]} 7. Ba4 {[%clk 0:03:00.1]} 7... b5 {[%clk 0:02:54.1]} 8. Bb3 {[%clk
0:03:00.1]} 8... O-O {[%clk 0:02:50.1]} 9. d4 {[%clk 0:02:55.9]} 9... exd4
{[%clk 0:02:49.1]} 10. e5 {[%clk 0:02:56.5]} 10... Qg6 {[%clk 0:02:45]} 11. cxd4
{[%clk 0:02:56.4]} 11... Bb6 {[%clk 0:02:44.6]} 12. Bc2 {[%clk 0:02:50.8]} 12...
Qh5 {[%clk 0:02:42.6]} 13. Nc3 {[%clk 0:02:43.1]} 13... d5 {[%clk 0:02:37.4]}
14. exd6 {[%clk 0:02:29.5]} 14... cxd6 {[%clk 0:02:36.2]} 15. d5 {[%clk
0:02:29.9]} 15... Ne5 {[%clk 0:02:31.8]} 16. Nxe5 {[%clk 0:02:29.8]} 16... Qxd1
{[%clk 0:02:26.2]} 17. Bxd1 {[%clk 0:02:17.4]} 17... dxe5 {[%clk 0:02:24.7]} 18.
Rxe5 {[%clk 0:02:18.3]} 18... Ng6 {[%clk 0:02:18.6]} 19. Re1 {[%clk 0:02:18.1]}
19... Bf5 {[%clk 0:02:10.6]} 20. Bf3 {[%clk 0:02:14.9]} 20... Rad8 {[%clk
0:02:08.4]} 21. Be3 {[%clk 0:02:13.5]} 21... Ba5 {[%clk 0:02:05]} 22. a3 {[%clk
0:02:06]} 22... Ne5 {[%clk 0:02:02.9]} 23. b4 {[%clk 0:01:50.6]} 23... Nxf3+
{[%clk 0:02:01.6]} 24. gxf3 {[%clk 0:01:51.5]} 24... Bc7 {[%clk 0:02:01.3]} 25.
Bc5 {[%clk 0:01:47.6]} 25... Rfe8 {[%clk 0:01:53.2]} 26. Rxe8+ {[%clk
0:01:43.3]} 26... Rxe8 {[%clk 0:01:52.9]} 27. d6 {[%clk 0:01:44.2]} 27... Bd8
{[%clk 0:01:53.1]} 28. Nd5 {[%clk 0:01:44.2]} 28... Bd7 {[%clk 0:01:40]} 29. Rd1
{[%clk 0:01:37.8]} 29... Re2 {[%clk 0:01:34]} 30. Bb6 {[%clk 0:01:20.8]} 30...
Bh4 {[%clk 0:01:27.6]} 31. Be3 {[%clk 0:01:19.1]} 31... f5 {[%clk 0:01:12.2]}
32. Nb6 {[%clk 0:01:16]} 32... f4 {[%clk 0:01:04.3]} 33. Bc5 {[%clk 0:01:12.4]}
33... Bc6 {[%clk 0:00:43.2]} 34. d7 {[%clk 0:01:01.8]} 34... Bxf3 {[%clk
0:00:42.4]} 35. d8=Q+ {[%clk 0:00:54.8]} 35... Bxd8 {[%clk 0:00:41.9]} 36. Rxd8+
{[%clk 0:00:55.6]} 36... Kf7 {[%clk 0:00:42.4]} 37. Rd1 {[%clk 0:00:44.2]} 37...
Ra2 {[%clk 0:00:41.6]} 38. Re1 {[%clk 0:00:34.2]} 38... Rxa3 {[%clk 0:00:27.4]}
39. Nd7 {[%clk 0:00:32]} 39... Bd5 {[%clk 0:00:23.4]} 40. Ne5+ {[%clk
0:00:31.1]} 40... Kf6 {[%clk 0:00:20.4]} 41. Nd7+ {[%clk 0:00:20.3]} 41... Kf5
{[%clk 0:00:19.9]} 42. Re5+ {[%clk 0:00:19.2]} 42... Kg4 {[%clk 0:00:20]} 43.
Re1 {[%clk 0:00:20.1]} 43... g5 {[%clk 0:00:18]} 44. Nf6+ {[%clk 0:00:19.3]}
44... Kf5 {[%clk 0:00:17.2]} 45. Nxd5 {[%clk 0:00:20.2]} 45... Rd3 {[%clk
0:00:11.8]} 46. Ne7+ {[%clk 0:00:19.8]} 46... Kg4 {[%clk 0:00:11.7]} 47. Nc6
{[%clk 0:00:18.6]} 47... Kh3 {[%clk 0:00:10.7]} 48. Ne5 {[%clk 0:00:17.9]} 48...
Rc3 {[%clk 0:00:09.7]} 49. Nf7 {[%clk 0:00:17.7]} 49... g4 {[%clk 0:00:08.7]}
50. Ng5+ {[%clk 0:00:17.5]} 50... Kh4 {[%clk 0:00:08.5]} 51. Ne4 {[%clk
0:00:17.5]} 51... Rc2 {[%clk 0:00:07.8]} 52. Be7+ {[%clk 0:00:17]} 52... Kh5
{[%clk 0:00:06.7]} 53. Nf6+ {[%clk 0:00:17.6]} 53... Kg5 {[%clk 0:00:06.3]} 54.
Nd5+ {[%clk 0:00:17.8]} 54... Kf5 {[%clk 0:00:06.5]} 55. Bc5 {[%clk 0:00:17.5]}
55... a5 {[%clk 0:00:05.9]} 56. Nb6 {[%clk 0:00:15.3]} 56... axb4 {[%clk
0:00:05.2]} 57. Bxb4 {[%clk 0:00:15.3]} 57... Rb2 {[%clk 0:00:04.9]} 58. Nd5
{[%clk 0:00:15.5]} 58... Kg5 {[%clk 0:00:04.5]} 59. Re5+ {[%clk 0:00:15.4]}
59... Kh4 {[%clk 0:00:04.6]} 60. Be7+ {[%clk 0:00:15.3]} 60... Kh3 {[%clk
0:00:03.7]} 61. Rh5# {[%clk 0:00:16]} 1-0

[Event "Early-Titled-Tuesday-Blitz-December-26-2023"]
[Site "Chess.com"]
[Date "2023.12.26"]
[Round "5"]
[White "zubridis"]
[Black "NowInChess"]
[Result "1-0"]
[WhiteElo "2560"]
[BlackElo "2301"]
[TimeControl "180+1"]
[EndTime "8:56:41 PST"]
[Termination "zubridis won on time"]

1. e4 {[%clk 0:03:00]} 1... e6 {[%clk 0:03:00.1]} 2. d4 {[%clk 0:02:59.4]} 2...
d5 {[%clk 0:03:00.7]} 3. Nd2 {[%clk 0:02:59.3]} 3... Nc6 {[%clk 0:03:00.8]} 4.
Ngf3 {[%clk 0:02:58]} 4... Nf6 {[%clk 0:03:00.9]} 5. e5 {[%clk 0:02:56.6]} 5...
Nd7 {[%clk 0:03:01.1]} 6. Be2 {[%clk 0:02:48.2]} 6... f6 {[%clk 0:02:59.7]} 7.
exf6 {[%clk 0:02:41.1]} 7... Qxf6 {[%clk 0:03:00.6]} 8. Nf1 {[%clk 0:02:39.6]}
8... Bd6 {[%clk 0:02:59]} 9. Ne3 {[%clk 0:02:38.5]} 9... O-O {[%clk 0:02:57.1]}
10. O-O {[%clk 0:02:35.5]} 10... Nb6 {[%clk 0:02:56.5]} 11. c4 {[%clk
0:02:15.5]} 11... dxc4 {[%clk 0:02:48.5]} 12. Nxc4 {[%clk 0:02:14.3]} 12... Nxc4
{[%clk 0:02:46]} 13. Bxc4 {[%clk 0:02:13.7]} 13... Nb4 {[%clk 0:02:32.4]} 14.
Re1 {[%clk 0:01:45.2]} 14... c6 {[%clk 0:02:11.4]} 15. a3 {[%clk 0:01:44.6]}
15... Nd5 {[%clk 0:02:11.1]} 16. Qe2 {[%clk 0:01:34.8]} 16... Bd7 {[%clk
0:02:06.9]} 17. Qe4 {[%clk 0:01:14.3]} 17... Rae8 {[%clk 0:01:19.7]} 18. Bg5
{[%clk 0:01:10.4]} 18... Qf5 {[%clk 0:01:07.8]} 19. Bh4 {[%clk 0:00:56]} 19...
Qxe4 {[%clk 0:00:59]} 20. Rxe4 {[%clk 0:00:56.9]} 20... Rf4 {[%clk 0:00:41.8]}
21. Rae1 {[%clk 0:00:44]} 21... Rxe4 {[%clk 0:00:39.4]} 22. Rxe4 {[%clk
0:00:44.9]} 22... h6 {[%clk 0:00:34.7]} 23. Bg3 {[%clk 0:00:44.7]} 23... Bxg3
{[%clk 0:00:31.2]} 24. hxg3 {[%clk 0:00:45.6]} 24... Nf6 {[%clk 0:00:17.4]} 25.
Re1 {[%clk 0:00:42.6]} 25... Ng4 {[%clk 0:00:16.7]} 26. Bb3 {[%clk 0:00:20.6]}
26... a5 {[%clk 0:00:14.8]} 27. Re4 {[%clk 0:00:19.4]} 27... Nf6 {[%clk
0:00:13.7]} 28. Re5 {[%clk 0:00:19.7]} 28... b6 {[%clk 0:00:11.1]} 29. Nd2
{[%clk 0:00:14.4]} 29... Ng4 {[%clk 0:00:10.2]} 30. Re4 {[%clk 0:00:13.6]} 30...
Nf6 {[%clk 0:00:09.5]} 31. Re1 {[%clk 0:00:13.9]} 31... Kf7 {[%clk 0:00:07]} 32.
Nc4 {[%clk 0:00:13.8]} 32... Nd5 {[%clk 0:00:07.4]} 33. Nd6+ {[%clk 0:00:13]}
33... Ke7 {[%clk 0:00:08.1]} 34. Nxe8 {[%clk 0:00:12.3]} 34... Bxe8 {[%clk
0:00:04.5]} 35. Bxd5 {[%clk 0:00:12.5]} 35... cxd5 {[%clk 0:00:05.4]} 36. Rc1
{[%clk 0:00:11.7]} 36... Kd7 {[%clk 0:00:05.4]} 37. f4 {[%clk 0:00:11.3]} 37...
Bg6 {[%clk 0:00:05.5]} 38. Kf2 {[%clk 0:00:11.3]} 38... Be4 {[%clk 0:00:05.7]}
39. g4 {[%clk 0:00:11.6]} 39... g6 {[%clk 0:00:05.7]} 40. g3 {[%clk 0:00:11.7]}
40... h5 {[%clk 0:00:05.6]} 41. gxh5 {[%clk 0:00:11.2]} 41... gxh5 {[%clk
0:00:06.5]} 42. Ke3 {[%clk 0:00:10.9]} 42... Bf5 {[%clk 0:00:04.2]} 43. Rh1
{[%clk 0:00:10.3]} 43... Bg4 {[%clk 0:00:04.5]} 44. Rc1 {[%clk 0:00:09.5]} 44...
Bf5 {[%clk 0:00:03.8]} 45. b4 {[%clk 0:00:09.9]} 45... a4 {[%clk 0:00:03.3]} 46.
b5 {[%clk 0:00:09.9]} 46... Bg4 {[%clk 0:00:02.6]} 47. Rc6 {[%clk 0:00:09.9]}
47... Bd1 {[%clk 0:00:01.6]} 48. Rxb6 {[%clk 0:00:09.7]} 48... Bb3 {[%clk
0:00:01.1]} 49. Rb7+ {[%clk 0:00:09.5]} 49... Kc8 {[%clk 0:00:01.1]} 50. Rh7
{[%clk 0:00:09.6]} 1-0

[Event "Early-Titled-Tuesday-Blitz-December-26-2023"]
[Site "Chess.com"]
[Date "2023.12.26"]
[Round "5"]
[White "Let_it_be_1"]
[Black "PeshkaCh"]
[Result "0-1"]
[WhiteElo "2580"]
[BlackElo "2834"]
[TimeControl "180+1"]
[EndTime "8:56:47 PST"]
[Termination "PeshkaCh won by resignation"]

1. e4 {[%clk 0:02:57.9]} 1... e5 {[%clk 0:03:00.5]} 2. Nf3 {[%clk 0:02:57.3]}
2... Nc6 {[%clk 0:03:01.1]} 3. Bb5 {[%clk 0:02:56.9]} 3... a6 {[%clk 0:03:01.7]}
4. Ba4 {[%clk 0:02:56.4]} 4... Nge7 {[%clk 0:03:02.2]} 5. d4 {[%clk 0:02:55.3]}
5... exd4 {[%clk 0:03:02.2]} 6. Nxd4 {[%clk 0:02:55.6]} 6... Ng6 {[%clk
0:02:59.9]} 7. Nf5 {[%clk 0:02:37.5]} 7... d5 {[%clk 0:02:35.3]} 8. Qxd5 {[%clk
0:02:08.4]} 8... Qxd5 {[%clk 0:02:34.4]} 9. exd5 {[%clk 0:02:08.5]} 9... Bxf5
{[%clk 0:02:35.1]} 10. dxc6 {[%clk 0:02:08.5]} 10... b5 {[%clk 0:02:35.7]} 11.
Bb3 {[%clk 0:02:08.1]} 11... Be4 {[%clk 0:02:33.9]} 12. O-O {[%clk 0:02:03.6]}
12... Bxc6 {[%clk 0:02:33.1]} 13. Nc3 {[%clk 0:01:58.7]} 13... Rd8 {[%clk
0:02:22.9]} 14. Bg5 {[%clk 0:01:50.3]} 14... Be7 {[%clk 0:02:19.4]} 15. Rfe1
{[%clk 0:01:49.9]} 15... Rd7 {[%clk 0:02:08.1]} 16. Bxe7 {[%clk 0:01:32.4]}
16... Rxe7 {[%clk 0:01:55.8]} 17. Nd5 {[%clk 0:01:20.2]} 17... Bxd5 {[%clk
0:01:49.4]} 18. Bxd5 {[%clk 0:01:18.8]} 18... O-O {[%clk 0:01:49.8]} 19. Rxe7
{[%clk 0:01:15.3]} 19... Nxe7 {[%clk 0:01:50.7]} 20. Bb7 {[%clk 0:01:08.8]}
20... Rb8 {[%clk 0:01:44]} 21. Rd1 {[%clk 0:00:54]} 21... g6 {[%clk 0:00:45.8]}
22. Bxa6 {[%clk 0:00:50.4]} 22... Rb6 {[%clk 0:00:36.7]} 23. Bc8 {[%clk
0:00:43.6]} 23... Kg7 {[%clk 0:00:37.1]} 24. Bg4 {[%clk 0:00:42.2]} 24... h5
{[%clk 0:00:35.4]} 25. Bf3 {[%clk 0:00:41.6]} 25... Nf5 {[%clk 0:00:35.9]} 26.
Rd7 {[%clk 0:00:35.5]} 26... c5 {[%clk 0:00:33]} 27. Bd5 {[%clk 0:00:32.5]}
27... Rf6 {[%clk 0:00:27.5]} 28. c3 {[%clk 0:00:29.4]} 28... b4 {[%clk
0:00:27.1]} 29. Rc7 {[%clk 0:00:25.8]} 29... bxc3 {[%clk 0:00:24.6]} 30. bxc3
{[%clk 0:00:25.7]} 30... Kf8 {[%clk 0:00:15.7]} 31. g3 {[%clk 0:00:25]} 31...
Ne7 {[%clk 0:00:15]} 32. Rxc5 {[%clk 0:00:24]} 32... Rd6 {[%clk 0:00:12]} 33. c4
{[%clk 0:00:23.9]} 33... Rb6 {[%clk 0:00:12.6]} 34. a4 {[%clk 0:00:21.6]} 34...
Nf5 {[%clk 0:00:10.3]} 35. Rc7 {[%clk 0:00:20.5]} 35... Rb1+ {[%clk 0:00:08.4]}
36. Kg2 {[%clk 0:00:20.6]} 36... Rb2 {[%clk 0:00:09.3]} 37. Rxf7+ {[%clk
0:00:20.1]} 37... Ke8 {[%clk 0:00:09.9]} 38. Rb7 {[%clk 0:00:19]} 38... Ra2
{[%clk 0:00:07.9]} 39. Rb6 {[%clk 0:00:17.1]} 39... Ne3+ {[%clk 0:00:07.8]} 40.
Kf3 {[%clk 0:00:16.4]} 40... Ng4 {[%clk 0:00:08.7]} 41. Rxg6 {[%clk 0:00:13.7]}
41... Ne5+ {[%clk 0:00:09.2]} 42. Kf4 {[%clk 0:00:13.3]} 42... Nxg6+ {[%clk
0:00:10.1]} 43. Kg5 {[%clk 0:00:14.2]} 43... Ne7 {[%clk 0:00:09.6]} 44. Kxh5
{[%clk 0:00:14.4]} 44... Rxf2 {[%clk 0:00:08.8]} 45. h4 {[%clk 0:00:14.2]} 45...
Nxd5 {[%clk 0:00:07.9]} 46. cxd5 {[%clk 0:00:14]} 46... Kf7 {[%clk 0:00:08.6]}
47. g4 {[%clk 0:00:11.9]} 47... Rd2 {[%clk 0:00:08.6]} 48. g5 {[%clk 0:00:12.2]}
48... Rxd5 {[%clk 0:00:09.1]} 49. Kh6 {[%clk 0:00:12.8]} 49... Rd6+ {[%clk
0:00:04.3]} 50. Kh7 {[%clk 0:00:12.8]} 50... Rg6 {[%clk 0:00:04.7]} 51. a5
{[%clk 0:00:12.4]} 51... Rg7+ {[%clk 0:00:03.8]} 52. Kh6 {[%clk 0:00:11.5]}
52... Rg8 {[%clk 0:00:04.2]} 53. Kh7 {[%clk 0:00:11.4]} 53... Rg7+ {[%clk
0:00:04.7]} 54. Kh6 {[%clk 0:00:09.9]} 54... Kg8 {[%clk 0:00:05.3]} 55. g6
{[%clk 0:00:08.6]} 55... Ra7 {[%clk 0:00:05.8]} 56. h5 {[%clk 0:00:09.1]} 56...
Rxa5 {[%clk 0:00:05.9]} 57. g7 {[%clk 0:00:08.8]} 57... Ra6+ {[%clk 0:00:06.5]}
58. Kg5 {[%clk 0:00:09.7]} 58... Kxg7 {[%clk 0:00:06.8]} 0-1